bitfinex-derivatives/quotes_BTCF0:USTF0_20241010
["timestamp","ask_amount","ask_price","bid_price","bid_amount"]
[1728529385835,0.012,60897.0,60896.0,1.22867946]
[1728529386431,0.012,60897.0,60896.0,0.46867946]
[1728529388932,0.012,60897.0,60896.0,0.442985]
[1728529389128,0.012,60897.0,60896.0,0.46867946]
[1728529391433,0.012,60897.0,60896.0,0.90983912]
[1728529392439,0.012,60897.0,60896.0,0.79525071]
[1728529393236,0.012,60897.0,60896.0,0.7953218]
[1728529393641,0.012,60897.0,60896.0,0.92616182]
[1728529394431,0.012,60897.0,60896.0,0.56536182]
[1728529394634,0.012,60897.0,60896.0,0.92616182]
[1728529400750,0.012,60897.0,60896.0,0.7953218]
[1728529401541,0.012,60897.0,60896.0,0.66890611]
[1728529402144,0.012,60897.0,60896.0,0.64321165]
[1728529402348,0.012,60897.0,60896.0,1.40321165]
[1728529402552,0.012,60897.0,60896.0,1.42890611]
[1728529402750,0.012,60897.0,60896.0,1.42890596]
[1728529403053,0.012,60897.0,60896.0,1.42925552]
[1728529405349,0.012,60897.0,60896.0,1.32018465]
[1728529405648,0.012,60897.0,60896.0,1.29449034]
[1728529405854,0.012,60897.0,60896.0,1.32018465]
[1728529407657,0.012,60897.0,60896.0,1.32019241]
[1728529408049,0.094183,60897.0,60896.0,1.32019241]
[1728529410646,0.094183,60897.0,60896.0,0.95939241]
[1728529410846,0.094183,60897.0,60896.0,1.32019241]
[1728529411044,0.094183,60897.0,60896.0,0.95939241]
[1728529411355,0.094183,60897.0,60896.0,1.32019241]
[1728529411555,0.094183,60897.0,60896.0,1.42926592]
[1728529412150,0.204183,60897.0,60896.0,1.23800741]
[1728529412357,0.204183,60897.0,60896.0,1.33648056]
[1728529412555,0.204183,60897.0,60896.0,1.33653865]
[1728529412755,0.204183,60897.0,60896.0,1.2380655]
[1728529413347,0.204183,60897.0,60896.0,1.50478793]
[1728529414352,0.204183,60897.0,60896.0,1.14398793]
[1728529415954,0.204183,60897.0,60896.0,1.25884961]
[1728529417659,0.204183,60897.0,60896.0,1.22617293]
[1728529419065,0.204183,60897.0,60896.0,1.20047862]
[1728529419559,0.204183,60897.0,60896.0,1.22617369]
[1728529420468,0.204183,60897.0,60896.0,1.34104063]
[1728529422161,0.204183,60897.0,60896.0,1.34096346]
[1728529422556,0.204183,60897.0,60896.0,1.31526839]
[1728529422761,0.204183,60897.0,60896.0,1.34096373]
[1728529423563,0.094183,60897.0,60896.0,1.34096373]
[1728529423768,0.094183,60897.0,60896.0,1.33609679]
[1728529426069,0.094183,60897.0,60896.0,1.33609619]
[1728529426973,0.094183,60897.0,60896.0,1.33601257]
[1728529427474,0.094183,60897.0,60896.0,1.69681257]
[1728529428171,0.094183,60897.0,60896.0,1.33601257]
[1728529428566,0.094183,60897.0,60896.0,1.69681257]
[1728529429180,0.012,60897.0,60896.0,1.69681257]
[1728529429473,0.0114,60901.0,60900.0,0.082179]
[1728529429681,0.02333092,60902.0,60901.0,0.082178]
[1728529429976,0.082174,60904.0,60902.0,0.082176]
[1728529430168,0.082174,60904.0,60903.0,0.20071121]
[1728529430371,0.10621573,60904.0,60903.0,0.20071121]
[1728529432676,0.21621573,60904.0,60903.0,0.20071121]
[1728529432877,0.21621573,60904.0,60903.0,0.20171121]
[1728529432878,0.22721573,60904.0,60903.0,0.20171121]
[1728529433275,0.24021573,60904.0,60903.0,0.28488621]
[1728529435481,0.24021573,60904.0,60903.0,0.084175]
[1728529443581,0.24021573,60904.0,60903.0,0.28462508]
[1728529445684,0.24021573,60904.0,60903.0,0.2846416]
[1728529447290,0.24021573,60904.0,60903.0,0.2024666]
[1728529448689,0.24021573,60904.0,60903.0,0.20256305]
[1728529450497,0.24021573,60904.0,60903.0,0.20259413]
[1728529451085,0.13021573,60904.0,60903.0,0.20259413]
[1728529451387,0.24021573,60904.0,60903.0,0.20259413]
[1728529458705,0.24021573,60904.0,60903.0,0.06769224]
[1728529459997,0.24021573,60904.0,60903.0,0.002]
[1728529462909,0.60101573,60904.0,60903.0,0.0512757]
[1728529463210,0.60101573,60904.0,60903.0,0.002]
[1728529465609,0.60101573,60904.0,60888.0,0.11486957]
[1728529465610,0.082183,60897.0,60888.0,0.11486957]
[1728529465800,0.082187,60894.0,60893.0,0.10959055]
[1728529466003,0.082196,60888.0,60887.0,0.082196]
[1728529466214,0.192196,60888.0,60887.0,0.21758773]
[1728529467714,0.192196,60888.0,60887.0,0.22558773]
[1728529468511,0.082196,60888.0,60887.0,0.22558773]
[1728529469019,0.082196,60888.0,60887.0,0.25798773]
[1728529470008,0.082196,60888.0,60887.0,0.14829446]
[1728529471706,0.082196,60888.0,60887.0,0.50909446]
[1728529472306,0.10534477,60888.0,60887.0,0.50909446]
[1728529472506,0.10534477,60888.0,60887.0,0.14829446]
[1728529472715,0.10534477,60888.0,60887.0,0.6165541]
[1728529472916,0.10534477,60888.0,60887.0,0.65767124]
[1728529474410,0.10534477,60888.0,60887.0,0.65765888]
[1728529474808,0.10534477,60888.0,60887.0,0.6576587]
[1728529477709,0.10534477,60888.0,60887.0,0.7676587]
[1728529480719,0.10534477,60888.0,60887.0,0.85782478]
[1728529480920,0.10534477,60888.0,60887.0,0.49702478]
[1728529481312,0.10534477,60888.0,60887.0,0.85782478]
[1728529481718,0.10534477,60888.0,60887.0,0.49702478]
[1728529481920,0.10534477,60888.0,60887.0,0.85782478]
[1728529484123,0.10534477,60888.0,60887.0,0.49702478]
[1728529484418,0.10534477,60888.0,60887.0,0.85782478]
[1728529485425,0.10534477,60888.0,60887.0,0.79100936]
[1728529485627,0.10534477,60888.0,60887.0,0.81670764]
[1728529485821,0.10534477,60888.0,60887.0,0.8578249]
[1728529488923,0.10534477,60888.0,60887.0,0.85790034]
[1728529489227,0.093586,60896.0,60895.0,0.082186]
[1728529489419,0.3608,60915.0,60895.0,0.29857161]
[1728529489420,0.01386381,60901.0,60895.0,0.29857161]
[1728529489726,0.01386381,60901.0,60896.0,1.05308302]
[1728529489727,0.11,60900.0,60896.0,1.05308302]
[1728529489927,0.082182,60898.0,60897.0,0.09018807]
[1728529490130,0.082182,60898.0,60897.0,0.17237107]
[1728529490328,0.082182,60898.0,60897.0,0.27075461]
[1728529490633,0.082182,60898.0,60897.0,0.27075325]
[1728529491330,0.082182,60898.0,60897.0,0.17237107]
[1728529491630,0.12729268,60901.0,60900.0,0.082179]
[1728529491825,0.12729268,60901.0,60900.0,0.17236707]
[1728529492020,0.11829268,60901.0,60900.0,0.17236707]
[1728529492225,0.10829268,60901.0,60900.0,0.17236707]
[1728529492625,0.10829268,60901.0,60900.0,0.27076498]
[1728529492823,0.11829268,60901.0,60900.0,0.27076498]
[1728529493024,0.12729268,60901.0,60900.0,0.27176498]
[1728529493226,0.12729268,60901.0,60900.0,0.17336707]
[1728529493427,0.14042268,60901.0,60900.0,0.17336707]
[1728529493728,0.14042268,60901.0,60900.0,0.17313671]
[1728529495721,0.14042268,60901.0,60900.0,0.27152426]
[1728529497231,0.14042268,60901.0,60900.0,0.17313671]
[1728529497428,0.14042268,60901.0,60900.0,0.27152426]
[1728529497829,0.14042268,60901.0,60900.0,0.17313671]
[1728529498136,0.14042268,60901.0,60900.0,0.27152426]
[1728529501322,0.05824468,60901.0,60900.0,0.17313671]
[1728529501723,0.05824468,60901.0,60900.0,0.23981516]
[1728529501922,0.05824468,60901.0,60900.0,0.1730112]
[1728529502120,0.05824468,60901.0,60900.0,0.21412133]
[1728529502327,0.05824468,60901.0,60900.0,0.23981516]
[1728529502631,0.05824468,60901.0,60900.0,0.28006376]
[1728529503438,0.05824468,60901.0,60900.0,0.64086376]
[1728529506242,0.05824468,60901.0,60900.0,0.18919527]
[1728529506243,0.25042268,60901.0,60900.0,0.18919527]
[1728529506535,0.25042268,60901.0,60900.0,0.0908322]
[1728529507430,0.25042268,60901.0,60894.0,0.3608]
[1728529507431,0.082182,60898.0,60897.0,0.09836307]
[1728529507639,0.11,60898.0,60897.0,0.08200336]
[1728529507935,0.082185,60896.0,60895.0,0.08200336]
[1728529508233,0.3608,60896.0,60893.0,0.08200336]
[1728529508439,0.192187,60894.0,60893.0,0.08200336]
[1728529509431,0.082189,60893.0,60892.0,0.08200336]
[1728529509730,0.192189,60893.0,60892.0,0.08200336]
[1728529510133,0.205319,60893.0,60892.0,0.08200336]
[1728529511330,0.206319,60893.0,60892.0,0.08200336]
[1728529511845,0.208319,60893.0,60892.0,0.08200336]
[1728529512531,0.208319,60893.0,60890.0,0.08200336]
[1728529512843,0.208319,60893.0,60887.0,0.0038]
[1728529512844,0.082193,60890.0,60889.0,0.08200336]
[1728529513047,0.082194,60889.0,60888.0,0.08200336]
[1728529513233,0.224894,60889.0,60888.0,0.08200336]
[1728529513452,0.082196,60888.0,60887.0,0.08200336]
[1728529513740,0.192196,60888.0,60887.0,0.08200336]
[1728529514737,0.192196,60888.0,60886.0,0.08200336]
[1728529514738,0.11,60888.0,60886.0,0.08200336]
[1728529514941,0.192197,60887.0,60886.0,0.08200336]
[1728529515940,0.192197,60887.0,60886.0,0.08600336]
[1728529516244,0.193197,60887.0,60886.0,0.09100336]
[1728529517129,0.193197,60887.0,60886.0,0.009]
[1728529517529,0.193197,60887.0,60886.0,0.01]
[1728529517530,0.194197,60887.0,60886.0,0.01]
[1728529517935,0.194197,60887.0,60886.0,0.07556395]
[1728529518243,0.194197,60887.0,60886.0,0.01]
[1728529518944,0.193197,60887.0,60886.0,0.005]
[1728529519334,0.196197,60887.0,60886.0,0.005]
[1728529520834,0.0822,60885.0,60884.0,0.06556395]
[1728529521241,0.082201,60884.0,60883.0,0.06556395]
[1728529521442,0.192201,60884.0,60883.0,0.06556395]
[1728529522839,0.195201,60884.0,60883.0,0.06556395]
[1728529523044,0.115,60884.0,60882.0,0.06551835]
[1728529523245,0.192202,60883.0,60881.0,0.06551835]
[1728529523439,0.192204,60882.0,60881.0,0.06551835]
[1728529523639,0.11,60882.0,60878.0,0.0635]
[1728529523840,0.082205,60881.0,60880.0,0.0655162]
[1728529524042,0.082202,60883.0,60878.0,0.0635]
[1728529524043,0.082206,60880.0,60879.0,0.0655162]
[1728529524242,0.192206,60880.0,60879.0,0.0655162]
[1728529525440,0.192206,60880.0,60879.0,0.0675162]
[1728529526045,0.192206,60880.0,60879.0,0.0695162]
[1728529526342,0.192206,60880.0,60879.0,0.004]
[1728529527044,0.205346,60880.0,60879.0,0.004]
[1728529531345,0.205346,60880.0,60879.0,0.0695162]
[1728529533459,0.205346,60880.0,60879.0,0.004]
[1728529534756,0.095346,60880.0,60879.0,0.004]
[1728529535059,0.095346,60880.0,60879.0,0.1761625]
[1728529535453,0.095346,60880.0,60879.0,0.09415914]
[1728529535973,0.095346,60880.0,60879.0,0.17636614]
[1728529535974,0.082206,60880.0,60879.0,0.17636614]
[1728529536353,0.082206,60880.0,60879.0,0.2747638]
[1728529536860,0.11,60881.0,60880.0,0.082206]
[1728529537158,0.11,60881.0,60880.0,0.17236514]
[1728529537359,0.11,60881.0,60880.0,0.2707628]
[1728529537653,0.12314,60881.0,60880.0,0.2707628]
[1728529538058,0.12314,60881.0,60880.0,0.2717628]
[1728529538856,0.12314,60881.0,60880.0,0.17336514]
[1728529539162,0.12314,60881.0,60880.0,0.2727628]
[1728529539467,0.01314,60881.0,60880.0,0.2727628]
[1728529539656,0.01314,60881.0,60880.0,0.28198305]
[1728529539853,0.01314,60881.0,60880.0,0.17443433]
[1728529541469,0.01314,60881.0,60880.0,0.28197848]
[1728529541760,0.01314,60881.0,60880.0,0.45880449]
[1728529543260,0.01314,60881.0,60880.0,0.51647325]
[1728529543451,0.082196,60888.0,60884.0,0.11]
[1728529543653,0.082196,60888.0,60885.0,0.55857248]
[1728529543854,0.082196,60888.0,60887.0,0.082197]
[1728529544064,0.082196,60888.0,60887.0,0.17242533]
[1728529544250,0.21583275,60888.0,60887.0,0.17242533]
[1728529545165,0.21946275,60888.0,60887.0,0.17242533]
[1728529545364,0.21946275,60888.0,60887.0,0.17542533]
[1728529546051,0.21946275,60888.0,60887.0,0.17242533]
[1728529546252,0.21946275,60888.0,60887.0,0.17342533]
[1728529546656,0.21946275,60888.0,60887.0,0.17642533]
[1728529546856,0.21946275,60888.0,60887.0,0.1760862]
[1728529547256,0.21946275,60888.0,60887.0,0.1750862]
[1728529547663,0.21946275,60888.0,60887.0,0.1760862]
[1728529547865,0.21946275,60888.0,60887.0,0.27250749]
[1728529548370,0.21946275,60888.0,60887.0,0.27049778]
[1728529548572,0.21946275,60888.0,60887.0,0.27649778]
[1728529548864,0.13726675,60888.0,60887.0,0.27649778]
[1728529550362,0.13726675,60888.0,60887.0,0.1780862]
[1728529551267,0.21946275,60888.0,60887.0,0.1780862]
[1728529551476,0.21946275,60888.0,60887.0,0.27649778]
[1728529552271,0.21946275,60888.0,60887.0,0.27349778]
[1728529553073,0.21946275,60888.0,60887.0,0.27049778]
[1728529553372,0.21946275,60888.0,60887.0,0.27249778]
[1728529554263,0.21946275,60888.0,60887.0,0.1740862]
[1728529554458,0.21946275,60888.0,60887.0,0.1760862]
[1728529555864,0.21946275,60888.0,60887.0,0.0938892]
[1728529557975,0.21946275,60888.0,60887.0,0.09379627]
[1728529558175,0.21946275,60888.0,60887.0,0.09179627]
[1728529558974,0.21946275,60888.0,60887.0,0.09178045]
[1728529559770,0.21946275,60888.0,60887.0,0.08978045]
[1728529559972,0.22046275,60888.0,60887.0,0.08978045]
[1728529560476,0.22146275,60888.0,60887.0,0.08978045]
[1728529561380,0.22146275,60888.0,60887.0,0.18819203]
[1728529561581,0.22246275,60888.0,60887.0,0.18819203]
[1728529564085,0.22246275,60888.0,60887.0,0.08978045]
[1728529565178,0.22246275,60888.0,60887.0,0.18819203]
[1728529566783,0.22246275,60888.0,60878.0,0.15056957]
[1728529566784,1.11178675,60888.0,60878.0,0.11866957]
[1728529566979,0.082198,60886.0,60885.0,0.08206811]
[1728529567177,0.0307,60887.0,60883.0,0.08206811]
[1728529567376,0.112897,60887.0,60886.0,0.06565439]
[1728529567787,1.205617,60887.0,60886.0,0.06565439]
[1728529568491,0.082206,60880.0,60879.0,0.0038]
[1728529568678,0.082216,60873.0,60872.0,0.3966]
[1728529568875,0.082216,60873.0,60872.0,0.3928]
[1728529568876,0.192216,60873.0,60872.0,0.3928]
[1728529570292,0.193216,60873.0,60872.0,0.3988]
[1728529571575,0.194216,60873.0,60872.0,0.4028]
[1728529571771,0.084216,60873.0,60872.0,0.4028]
[1728529571984,0.194216,60873.0,60872.0,0.4028]
[1728529572180,0.21750291,60873.0,60872.0,0.4028]
[1728529574189,0.02528691,60873.0,60872.0,0.4028]
[1728529574390,0.082213,60876.0,60872.0,0.4028]
[1728529574587,0.082213,60876.0,60875.0,0.082213]
[1728529574787,0.192213,60876.0,60875.0,0.082213]
[1728529575489,0.193213,60876.0,60875.0,0.082213]
[1728529575988,0.194213,60876.0,60875.0,0.085213]
[1728529577099,0.193213,60876.0,60875.0,0.085213]
[1728529577393,0.21733171,60876.0,60875.0,0.090213]
[1728529577981,0.21633171,60876.0,60875.0,0.085213]
[1728529578191,0.21733171,60876.0,60875.0,0.091213]
[1728529578892,0.21733171,60876.0,60875.0,0.009]
[1728529585393,0.21733171,60876.0,60868.0,0.0038]
[1728529585394,0.082221,60869.0,60868.0,0.0038]
[1728529585694,0.082221,60869.0,60868.0,0.08732204]
[1728529585695,0.192221,60869.0,60868.0,0.08732204]
[1728529585899,0.082225,60866.0,60865.0,0.02312687]
[1728529586190,0.082225,60866.0,60858.0,0.0331]
[1728529586191,0.082232,60861.0,60858.0,0.0369]
[1728529586394,0.082232,60861.0,60858.0,0.0331]
[1728529587480,0.083232,60861.0,60860.0,0.0353]
[1728529588511,0.083232,60861.0,60860.0,0.117533]
[1728529588512,0.001,60861.0,60860.0,0.117533]
[1728529589393,0.002,60861.0,60860.0,0.117533]
[1728529590098,0.002,60861.0,60860.0,0.14324457]
[1728529590993,0.084232,60861.0,60860.0,0.14324457]
[1728529591585,0.084232,60861.0,60860.0,0.117533]
[1728529591989,0.084232,60861.0,60860.0,0.14324411]
[1728529592394,0.084232,60861.0,60860.0,0.117533]
[1728529593191,0.084232,60861.0,60860.0,0.12296114]
[1728529597695,0.084232,60861.0,60860.0,0.20519414]
[1728529597696,0.002,60861.0,60860.0,0.20519414]
[1728529599591,0.00564,60861.0,60860.0,0.20519414]
[1728529599998,0.00564,60861.0,60860.0,0.17289414]
[1728529600195,0.087872,60861.0,60860.0,0.09066114]
[1728529600496,0.087872,60861.0,60860.0,0.09076213]
[1728529601101,0.087872,60861.0,60860.0,0.17278544]
[1728529601307,0.087872,60861.0,60860.0,0.003]
[1728529602007,0.082233,60860.0,60859.0,0.08202331]
[1728529602501,0.082233,60860.0,60859.0,0.16985312]
[1728529603201,0.082233,60860.0,60859.0,0.08202331]
[1728529603397,0.084233,60860.0,60859.0,0.08202331]
[1728529603908,0.087233,60860.0,60859.0,0.08202331]
[1728529604492,0.087233,60860.0,60856.0,0.45918406]
[1728529604802,0.257233,60860.0,60859.0,0.08200634]
[1728529605099,0.254233,60860.0,60859.0,0.08200634]
[1728529605602,0.255233,60860.0,60859.0,0.16980769]
[1728529606594,0.255233,60860.0,60859.0,0.08200634]
[1728529607098,0.256233,60860.0,60859.0,0.08200634]
[1728529607801,0.254233,60860.0,60859.0,0.08200634]
[1728529608000,0.255233,60860.0,60859.0,0.0878024]
[1728529609299,0.256233,60860.0,60859.0,0.0878024]
[1728529609702,0.174,60860.0,60859.0,0.08783702]
[1728529609903,0.256233,60860.0,60859.0,0.08783702]
[1728529610695,0.255233,60860.0,60859.0,0.08783702]
[1728529611290,0.257233,60860.0,60859.0,0.08783702]
[1728529611701,0.253233,60860.0,60859.0,0.08783702]
[1728529611904,0.255233,60860.0,60859.0,0.08783702]
[1728529612498,0.195233,60860.0,60859.0,0.08783702]
[1728529613705,0.196233,60860.0,60859.0,0.08783702]
[1728529614096,0.194233,60860.0,60859.0,0.18622108]
[1728529614301,0.195233,60860.0,60859.0,0.18622108]
[1728529614706,0.195233,60860.0,60859.0,0.1863373]
[1728529615200,0.195233,60860.0,60859.0,0.08795324]
[1728529615506,0.193233,60860.0,60859.0,0.08795324]
[1728529615705,0.193233,60860.0,60859.0,0.19284351]
[1728529617001,0.001,60860.0,60859.0,0.27507851]
[1728529617803,0.00364,60861.0,60859.0,0.27507851]
[1728529617998,0.00364,60861.0,60860.0,0.19273055]
[1728529619416,0.00364,60861.0,60860.0,0.27499374]
[1728529621512,0.00364,60861.0,60860.0,0.27496151]
[1728529623015,0.00364,60861.0,60860.0,0.08793983]
[1728529623016,0.085872,60861.0,60860.0,0.08793983]
[1728529624202,0.087872,60861.0,60860.0,0.08793983]
[1728529624399,0.090872,60861.0,60860.0,0.08793983]
[1728529627713,0.091872,60861.0,60860.0,0.08793983]
[1728529628415,0.088872,60861.0,60860.0,0.08793983]
[1728529628604,0.090872,60861.0,60860.0,0.08793983]
[1728529628910,0.090872,60861.0,60860.0,0.18660689]
[1728529629308,0.087872,60861.0,60860.0,0.18660689]
[1728529629502,0.089872,60861.0,60860.0,0.18660689]
[1728529630110,0.088872,60861.0,60860.0,0.18660689]
[1728529630311,0.091872,60861.0,60860.0,0.18660689]
[1728529631910,0.091872,60861.0,60860.0,0.08793983]
[1728529631911,0.691872,60861.0,60860.0,0.08793983]
[1728529632113,1.274792,60861.0,60860.0,0.08793983]
[1728529632608,1.274792,60861.0,60860.0,0.17015682]
[1728529634717,1.274792,60861.0,60860.0,0.08793983]
[1728529637121,1.274792,60861.0,60860.0,0.08807751]
[1728529637418,1.274792,60861.0,60860.0,0.17026862]
[1728529637624,0.674792,60861.0,60860.0,0.17026862]
[1728529638125,0.674792,60861.0,60860.0,0.08219111]
[1728529638321,0.59256,60861.0,60859.0,0.08219111]
[1728529638515,0.192233,60860.0,60859.0,0.08219111]
[1728529638715,0.302233,60860.0,60859.0,0.17026035]
[1728529639621,0.302233,60860.0,60859.0,0.08806924]
[1728529639824,0.304233,60860.0,60859.0,0.08806924]
[1728529640225,0.307873,60860.0,60859.0,0.08806924]
[1728529640525,0.307873,60860.0,60859.0,0.17025201]
[1728529640725,0.309873,60860.0,60859.0,0.17025201]
[1728529641926,0.309873,60860.0,60859.0,0.08805966]
[1728529642121,0.309873,60860.0,60857.0,0.08218087]
[1728529642331,0.192236,60858.0,60857.0,0.08218087]
[1728529642620,0.192236,60858.0,60857.0,0.17039778]
[1728529644213,0.192236,60858.0,60857.0,0.08218087]
[1728529644415,0.11,60858.0,60857.0,0.08216848]
[1728529644623,0.192236,60858.0,60857.0,0.17035918]
[1728529644834,0.192236,60858.0,60857.0,0.08216837]
[1728529645124,0.192236,60858.0,60856.0,0.08216837]
[1728529645422,0.11,60857.0,60853.0,0.09866706]
[1728529645622,0.08224,60855.0,60854.0,0.08816841]
[1728529646224,0.08224,60855.0,60854.0,0.18683547]
[1728529646426,0.55304,60855.0,60854.0,0.08816841]
[1728529651035,0.58301711,60855.0,60854.0,0.08816841]
[1728529651537,0.58301711,60855.0,60854.0,0.08825805]
[1728529651731,0.22221711,60855.0,60854.0,0.08825805]
[1728529651931,0.58301711,60855.0,60854.0,0.08825805]
[1728529653135,0.11221711,60855.0,60854.0,0.08825805]
[1728529653331,0.11221711,60855.0,60854.0,0.18692511]
[1728529653640,0.11221711,60855.0,60854.0,0.19322501]
[1728529662731,0.02997711,60855.0,60854.0,0.19322501]
[1728529663041,0.082235,60859.0,60855.0,0.08224]
[1728529663341,0.082235,60859.0,60856.0,0.30322501]
[1728529663549,0.11,60860.0,60857.0,0.19330335]
[1728529663744,0.082236,60858.0,60856.0,0.11]
[1728529664035,0.164473,60858.0,60857.0,0.19313578]
[1728529664935,0.168113,60858.0,60857.0,0.19313578]
[1728529667740,0.085876,60858.0,60857.0,0.19313578]
[1728529669128,0.085876,60858.0,60857.0,0.18673336]
[1728529670741,0.085876,60858.0,60857.0,0.08811093]
[1728529671060,0.085876,60858.0,60857.0,0.18673027]
[1728529672434,0.085876,60858.0,60857.0,0.08811093]
[1728529672634,0.085876,60858.0,60857.0,0.18673027]
[1728529672839,0.085876,60858.0,60857.0,0.08811093]
[1728529673134,0.085876,60858.0,60856.0,0.0821886]
[1728529673336,0.553037,60857.0,60856.0,0.0821886]
[1728529673537,0.553037,60857.0,60856.0,0.17047002]
[1728529675243,0.192237,60857.0,60856.0,0.17047002]
[1728529675445,0.553037,60857.0,60856.0,0.17047002]
[1728529676036,0.192237,60857.0,60856.0,0.08828142]
[1728529679544,0.11,60857.0,60856.0,0.26913976]
[1728529680245,0.11,60857.0,60856.0,0.26902265]
[1728529681342,0.11,60857.0,60856.0,0.17040331]
[1728529681550,0.11,60857.0,60856.0,0.26902265]
[1728529682148,0.00364,60858.0,60856.0,0.26902265]
[1728529682342,0.00364,60858.0,60857.0,0.26902065]
[1728529682544,0.00364,60858.0,60857.0,0.17040131]
[1728529682749,0.00364,60858.0,60857.0,0.27542223]
[1728529684045,0.00364,60858.0,60857.0,0.41113412]
[1728529685655,0.0114,60863.0,60862.0,0.082231]
[1728529685847,0.3608,60866.0,60862.0,0.082231]
[1728529685848,0.3608,60866.0,60865.0,0.082227]
[1728529686061,0.3608,60866.0,60865.0,0.17039131]
[1728529686447,0.39102673,60866.0,60865.0,0.26895513]
[1728529687652,0.39902673,60866.0,60865.0,0.26895513]
[1728529688559,0.39902673,60866.0,60865.0,0.26851061]
[1728529688755,0.39902673,60866.0,60865.0,0.16994679]
[1728529688756,0.04622673,60866.0,60865.0,0.16994679]
[1728529689652,0.04622673,60866.0,60865.0,0.26845389]
[1728529689861,0.04622673,60866.0,60865.0,0.16994679]
[1728529690354,0.04622673,60866.0,60865.0,0.26843611]
[1728529690851,0.04622673,60866.0,60865.0,0.2684359]
[1728529691370,0.04622673,60866.0,60865.0,0.082227]
[1728529696545,0.04622673,60866.0,60865.0,0.443027]
[1728529698458,0.04622673,60866.0,60865.0,0.53047292]
[1728529702061,0.04622673,60866.0,60865.0,0.55618137]
[1728529702260,0.04622673,60866.0,60865.0,0.53047292]
[1728529706262,0.04622673,60866.0,60865.0,0.443027]
[1728529707858,0.04622673,60866.0,60865.0,0.49226907]
[1728529708058,0.04622673,60866.0,60865.0,0.443027]
[1728529709365,0.03322673,60866.0,60865.0,0.443027]
[1728529709558,0.03622673,60866.0,60865.0,0.443027]
[1728529713164,0.03622673,60866.0,60865.0,0.5086607]
[1728529713368,0.03622673,60866.0,60865.0,0.63508293]
[1728529721973,0.03622673,60866.0,60865.0,0.6607915]
[1728529722569,0.03622673,60866.0,60865.0,0.6607917]
[1728529722877,0.03622673,60866.0,60865.0,0.63508293]
[1728529723083,0.03622673,60866.0,60865.0,0.66079174]
[1728529723267,0.03622673,60866.0,60865.0,0.63508293]
[1728529723674,0.03622673,60866.0,60865.0,0.66079135]
[1728529724085,0.03622673,60866.0,60865.0,0.63508293]
[1728529724984,0.03622673,60866.0,60865.0,0.66079107]
[1728529725377,0.03622673,60866.0,60865.0,0.63508293]
[1728529725981,0.03622673,60866.0,60865.0,0.66079141]
[1728529726181,0.03622673,60866.0,60865.0,0.63508293]
[1728529726984,0.03622673,60866.0,60865.0,0.63520571]
[1728529728385,0.03622673,60866.0,60865.0,0.443027]
[1728529730088,0.03622673,60866.0,60865.0,0.082227]
[1728529731881,0.03622673,60866.0,60865.0,0.1479917]
[1728529736590,0.03622673,60866.0,60865.0,0.27437392]
[1728529738677,0.03622673,60866.0,60865.0,0.082227]
[1728529740094,0.03622673,60866.0,60865.0,0.27431255]
[1728529741685,0.03622673,60866.0,60865.0,0.18668075]
[1728529742091,0.03622673,60866.0,60865.0,0.082227]
[1728529745096,0.03622673,60866.0,60865.0,0.27434751]
[1728529746294,0.03622673,60866.0,60865.0,0.082227]
[1728529749999,0.006,60866.0,60865.0,0.082227]
[1728529750300,0.0114,60871.0,60870.0,0.08222]
[1728529750601,0.196015,60874.0,60872.0,0.082216]
[1728529750602,0.203615,60874.0,60872.0,0.082216]
[1728529750794,0.192215,60874.0,60873.0,0.08766368]
[1728529752301,0.192215,60874.0,60873.0,0.26851055]
[1728529752498,0.204215,60874.0,60873.0,0.16987968]
[1728529752797,0.23346216,60874.0,60873.0,0.16987968]
[1728529754506,0.24346216,60874.0,60873.0,0.16987968]
[1728529756605,0.24346216,60874.0,60873.0,0.16972316]
[1728529759901,0.24346216,60874.0,60873.0,0.26835403]
[1728529760303,0.24346216,60874.0,60873.0,0.082216]
[1728529764708,0.16124716,60874.0,60873.0,0.082216]
[1728529767414,0.16124716,60874.0,60873.0,0.16961296]
[1728529768608,0.16124716,60874.0,60873.0,0.27383139]
[1728529769313,0.24346116,60874.0,60873.0,0.27383139]
[1728529771313,0.24346116,60874.0,60873.0,0.27384829]
[1728529774425,0.24346116,60874.0,60873.0,0.082216]
[1728529774617,0.24346116,60874.0,60873.0,0.13151742]
[1728529774820,0.082216,60873.0,60872.0,0.08190142]
[1728529775023,0.082216,60873.0,60868.0,0.04930142]
[1728529775024,0.082221,60869.0,60868.0,0.04930142]
[1728529775222,0.192221,60869.0,60868.0,0.04930142]
[1728529775525,0.082223,60868.0,60867.0,0.04930142]
[1728529775720,0.192223,60868.0,60867.0,0.04930142]
[1728529777928,0.197223,60868.0,60867.0,0.04930142]
[1728529778129,0.202223,60868.0,60867.0,0.04930142]
[1728529779134,0.092223,60868.0,60867.0,0.04930142]
[1728529779436,0.202223,60868.0,60867.0,0.04930142]
[1728529781131,0.202223,60868.0,60867.0,0.13152542]
[1728529782333,0.202223,60868.0,60867.0,0.27427814]
[1728529783033,0.202223,60868.0,60867.0,0.08761747]
[1728529784553,0.202223,60868.0,60867.0,0.18621746]
[1728529786249,0.202223,60868.0,60867.0,0.08761747]
[1728529789349,0.202223,60868.0,60867.0,0.18621746]
[1728529790443,0.202223,60868.0,60867.0,0.082224]
[1728529791648,0.12,60868.0,60867.0,0.082224]
[1728529795055,0.12,60868.0,60867.0,0.13151375]
[1728529797353,0.12,60868.0,60867.0,0.27435397]
[1728529798657,0.01,60868.0,60867.0,0.27435397]
[1728529798850,0.12,60868.0,60867.0,0.27435397]
[1728529799558,0.01,60868.0,60867.0,0.27435397]
[1728529799945,0.01,60868.0,60867.0,0.27411521]
[1728529800268,0.01,60868.0,60867.0,0.40982311]
[1728529802154,0.01,60868.0,60867.0,0.52493489]
[1728529802352,0.01,60868.0,60867.0,0.64611425]
[1728529802955,0.01,60868.0,60867.0,0.53100247]
[1728529803154,0.01,60868.0,60867.0,0.64605718]
[1728529804263,0.01,60868.0,60867.0,0.53100247]
[1728529804469,0.01,60868.0,60867.0,0.2179319]
[1728529804947,0.01,60868.0,60867.0,0.2811319]
[1728529806367,0.01,60868.0,60867.0,0.28112983]
[1728529808354,0.0114,60874.0,60873.0,0.082216]
[1728529808559,0.0076,60879.0,60873.0,0.082216]